Cogmind - Beta 16.1 @@@ ROGUE MODE // 2026.02.15 @ 14:47:58 // Winter2019/RPGLIKE Player: badjay Result: Destroyed by Hellfire Trap Performance ------------- Evolutions (7) 3500 Regions Visited (19) 3800 Robots Destroyed (118) 590 Value Destroyed (4674) 4674 Prototype IDs (14) 280 Alien Tech Used (0) 0 Bonus (1060) 1060 TOTAL SCORE: 13904 Bonus ------- Pacifist 200 High Alert Combat Kills 31 MAIN.C Attacked Warlord 500 Warlord Defense Kills 376 Friendly Fire -47 Cogmind --------- Core Integrity 0/600 Matter 175/300 Energy 197/200 System Corruption 0% Temperature Cool (9) Movement Flying (34) Location -3/Testing Parts ------- > --- POWER (1) -------- Fusion Compressor > --- PROPULSION (4) --- Improved Flight Unit Cesium-ion Thruster Impulse Thruster Array > --- UTILITY (8) ------ Advanced Terrain Scanner Advanced Terrain Scan Processor Advanced Targeting Computer Improved Target Analyzer Core Analyzer Improved Weapon Cycler Stasis Canceller Advanced Reaction Control System > --- WEAPON (3) ------- Arc Projector Heavy Wave Gun Disruptor Cannon > --- INVENTORY (2) ---- Xenon Bombardment Thruster Vortex Rail (40) Peak State ------------ > --- POWER ------------ Fusion Compressor > --- PROPULSION ------- Improved Flight Unit Cesium-ion Thruster Impulse Thruster Array > --- UTILITY ---------- Advanced Terrain Scanner Advanced Terrain Scan Processor Advanced Targeting Computer Improved Target Analyzer Core Analyzer Improved Weapon Cycler Stasis Canceller Advanced Reaction Control System > --- WEAPON ----------- Arc Projector Heavy Wave Gun Disruptor Cannon > --- INVENTORY -------- Xenon Bombardment Thruster Vortex Rail [Rating: 85] Favorites ----------- Power Fusion Compressor Engine Ion Engine Power Core Fusion Compressor Reactor Antimatter Reactor Propulsion Improved Flight Unit Flight Unit Improved Flight Unit Utility Advanced Terrain Scan Processor Device Advanced Terrain Scanner Processor Advanced Terrain Scan Processor Weapon Arc Projector Energy Gun Arc Projector Energy Cannon Disruptor Cannon Special Weapon RU-N14's Throwing Claymores v3 Build | -11 -10 -9 -9 -9 -8 -8 -7 -6 -6 -6 -5 -5 -5 -4 -4 -4 -4 -3 -3 ------- Run | Yrd Mat Mat Min Exi Min Mat Fac Fac Low Low Fac Upp War Pro Fac Upp Upp Res Tes Slots Evolved 12 | . . 1 . . 1 3 2 3 . . . . . 2 . . . . . Power . | . . . . . . . . . . . . . . . . . . . . Propulsion 3 | . . . . . 1 1 . . . . . . . 1 . . . . . Utility 7 | . . . . . . 1 2 3 . . . . . 1 . . . . . Weapon 2 | . . 1 . . . 1 . . . . . . . . . . . . . Parts Attached 53 | . 1 6 1 . 1 10 8 4 . 1 4 . 5 2 1 1 . 6 2 Power 8 | . . 2 1 . . . . . . . 2 . 1 . . 1 . 1 . Engine 3 | . . 2 . . . . . . . . . . . . . 1 . . . Core 3 | . . . 1 . . . . . . . 2 . . . . . . . . Reactor 2 | . . . . . . . . . . . . . 1 . . . . 1 . Propulsion 12 | . . 1 . . 1 2 1 . . . . . 1 1 . . . 4 1 Treads . | . . . . . . . . . . . . . . . . . . . . Leg . | . . . . . . . . . . . . . . . . . . . . Wheel . | . . . . . . . . . . . . . . . . . . . . Hover . | . . . . . . . . . . . . . . . . . . . . Flight 12 | . . 1 . . 1 2 1 . . . . . 1 1 . . . 4 1 Utility 14 | . 1 . . . . 2 4 4 . . 1 . . 1 1 . . . . Device 7 | . 1 . . . . . 1 2 . . 1 . . 1 1 . . . . Storage . | . . . . . . . . . . . . . . . . . . . . Processor 7 | . . . . . . 2 3 2 . . . . . . . . . . . Hackware . | . . . . . . . . . . . . . . . . . . . . Protection . | . . . . . . . . . . . . . . . . . . . . Artifact . | . . . . . . . . . . . . . . . . . . . . Weapon 19 | . . 3 . . . 6 3 . . 1 1 . 3 . . . . 1 1 Energy Gun 12 | . . 3 . . . 3 2 . . . . . 2 . . . . 1 1 Energy Cannon 6 | . . . . . . 3 1 . . 1 1 . . . . . . . . Ballistic Gun . | . . . . . . . . . . . . . . . . . . . . Ballistic Cannon . | . . . . . . . . . . . . . . . . . . . . Launcher . | . . . . . . . . . . . . . . . . . . . . Special Weapon 1 | . . . . . . . . . . . . . 1 . . . . . . Impact Weapon . | . . . . . . . . . . . . . . . . . . . . Slashing Weapon . | . . . . . . . . . . . . . . . . . . . . Piercing Weapon . | . . . . . . . . . . . . . . . . . . . . Special Melee Weapon . | . . . . . . . . . . . . . . . . . . . . Unidentified Prototypes 10 | . . 2 . . . 1 1 . . . 1 . 3 . . . . 1 1 Corrupted Parts 3 | . . 2 1 . . . . . . . . . . . . . . . . System Corruption 15 | . . 12 3 . . . . . . . . . . . . . . . . Parts Lost 4 | . . . . . 2 1 . . . . . . . . . . . 1 . Power . | . . . . . . . . . . . . . . . . . . . . Propulsion 1 | . . . . . . 1 . . . . . . . . . . . . . Utility . | . . . . . . . . . . . . . . . . . . . . Weapon 3 | . . . . . 2 . . . . . . . . . . . . 1 . Highest Loss Streak 2 | . . . . . 2 1 . . . . . . . . . . . 1 . To Critical Strikes . | . . . . . . . . . . . . . . . . . . . . Average Backups . | . . . . . . . . . 1 . . . . 1 1 1 1 1 2 Power . | . . . . . . . . . . . . . . . . . . . . Propulsion . | . . . . . . . . . . . . . . . . . . . 1 Utility . | . . . . . . . . . 1 . . . . . . . . . . Weapon . | . . . . . . . . . . . . . . 1 1 1 1 1 1 Tool/Special . | . . . . . . . . . . . . . . . . . . . . Unused Backups . | . . . . . . . . . . . . . . . . . . . . Power . | . . . . . . . . . . . . . . . . . . . . Propulsion . | . . . . . . . . . . . . . . . . . . . . Utility . | . . . . . . . . . . . . . . . . . . . . Weapon . | . . . . . . . . . . . . . . . . . . . . Tool/Special . | . . . . . . . . . . . . . . . . . . . . Average Slot Usage (%) 95 | . 17 72 100 100 89 98 100 99 100 100 100 100 99 100 100 100 100 97 92 Core 7 | . . . 16 20 16 12 9 7 7 7 7 7 7 6 6 6 6 6 6 Flight 22 | . . 8 20 20 30 26 29 24 21 21 21 21 20 23 25 25 25 25 21 Device 20 | . 17 20 20 20 16 12 16 18 21 21 21 21 21 25 25 25 25 25 25 Processor 19 | . . . . . . 9 14 23 28 28 28 28 28 25 25 25 25 25 25 Energy Gun 17 | . . 35 40 40 24 23 19 15 14 14 14 14 13 12 12 12 12 9 8 Energy Cannon 6 | . . . . . . 11 9 7 7 7 7 7 7 6 6 6 6 6 6 Peak Build Rating 85 | . 1 10 11 11 12 21 37 54 54 55 60 60 66 65 69 69 69 74 85 Average Rating 44 | . . 6 10 11 10 17 31 43 54 54 58 60 61 64 67 69 69 68 78 On Entrance 38 | . . 1 9 11 11 8 21 37 54 54 54 60 60 58 65 69 69 69 69 Avg Prop Armor Cover (%) . | . . . . . . . . . . . . . . . . . . . . Naked Turns 27 | . 27 . . . . . . . . . . . . . . . . . . Heaviest Build 33 | . 1 12 12 12 12 17 22 23 23 24 25 25 31 29 31 31 31 31 33 Greatest Support 44 | 3 3 15 15 15 19 25 26 27 27 27 27 27 27 34 34 34 34 38 44 Greatest Overweight (x) 2 | . . 2 . . . 1 . . . . . . 1 . . . . . . Average Overweight (x) . | . . . . . . . . . . . . . . . . . . . . Largest Inventory Capacity 2 | . . . . . . . 1 1 1 1 1 1 2 2 2 2 2 2 2 Average Capacity 1 | . . . . . . . . 1 1 1 1 1 1 2 2 2 2 2 2 Most Carried 2 | . . . . . . . 1 1 1 1 1 1 2 2 2 2 2 2 2 Average Carried 1 | . . . . . . . . . 1 1 1 1 1 2 2 2 2 1 2 Final Capacity 2 | . . . . . . . 1 1 1 1 1 1 2 2 2 2 2 2 2 Final Carried 2 | . . . . . . . 1 1 1 1 1 1 2 2 2 2 2 2 2 Class Distribution -------------------- 68% | Sprinter 15% | Mutant 8% | Scientist-Gunner Dominant Class ---------------- Mutant | -10/Materials Mutant | -9/Materials Mutant | -9/Mines Mutant | -9/Exiles Mutant | -8/Mines Scientist-Gunner | -8/Materials Sprinter | -7/Factory Sprinter | -6/Factory Sprinter | -6/Lower Caves Sprinter | -6/Lower Caves Sprinter | -5/Factory Sprinter | -5/Upper Caves Sprinter | -5/Warlord Sprinter | -4/Proximity Caves Sprinter | -4/Factory Sprinter | -4/Upper Caves Sprinter | -4/Upper Caves Sprinter | -3/Research Hacker-Gunner | -3/Testing Resources | -11 -10 -9 -9 -9 -8 -8 -7 -6 -6 -6 -5 -5 -5 -4 -4 -4 -4 -3 -3 ----------- Run | Yrd Mat Mat Min Exi Min Mat Fac Fac Low Low Fac Upp War Pro Fac Upp Upp Res Tes Matter Collected 2382 | 121 74 35 77 . 44 100 110 40 . 20 185 . 318 425 281 197 . 355 . Remotely . | . . . . . . . . . . . . . . . . . . . . Salvage Created 5629 | . . 454 84 . 177 921 451 841 303 441 415 . 190 334 584 126 . 308 . Parts 276 | . . 28 2 . 11 40 18 39 4 31 17 . 7 32 24 3 . 20 . Haulers Intercepted 7 | . . 1 . . . 2 2 . . . 1 . . . 1 . . . . Recyclers Shooed 1 | . . . . . . . . 1 . . . . . . . . . . . Parts Field Recycled . | . . . . . . . . . . . . . . . . . . . . Retrieved Matter . | . . . . . . . . . . . . . . . . . . . . Parts Self-Destructed 38 | . . . . . . . . . 2 10 . . . 26 . . . . . Prevented 36 | . . . . . . . . . 2 23 . . . 8 . 3 . . . Parts Restored . | . . . . . . . . . . . . . . . . . . . . Kills | -11 -10 -9 -9 -9 -8 -8 -7 -6 -6 -6 -5 -5 -5 -4 -4 -4 -4 -3 -3 ------- Run | Yrd Mat Mat Min Exi Min Mat Fac Fac Low Low Fac Upp War Pro Fac Upp Upp Res Tes Combat Hostiles Destroyed 97 | . . 6 1 . 7 17 6 13 3 12 3 . 4 14 4 1 . 6 . Guns 47 | . . 4 1 . 5 9 2 4 2 2 2 . 1 12 1 . . 2 . Cannons 17 | . . . . . . 2 2 . 1 6 . . 2 1 . . . 3 . AOE 15 | . . 2 . . 2 4 . 7 . . . . . . . . . . . Classes Destroyed 15 | . . 4 . . 2 4 . 2 . 1 . . 2 . . . . . . Builder 2 | . . 2 . . . . . . . . . . . . . . . . . Hauler 7 | . . 1 . . . 2 2 . . . 1 . . . 1 . . . . Recycler 1 | . . . . . . 1 . . . . . . . . . . . . . Mechanic 1 | . . . . . . 1 . . . . . . . . . . . . . Operator 1 | . . . . . . . . 1 . . . . . . . . . . . Watcher 9 | . . . . . . 2 . 3 . . 2 . . . 2 . . . . Swarmer 27 | . . . . . 3 2 . 4 . 2 . . . 13 . . . 3 . Saboteur 1 | . . . . . . . . . . . . . 1 . . . . . . Grunt 35 | . . 5 1 . 3 9 4 4 . 4 . . . . 2 . . 3 . Brawler 7 | . . . . . . . . 3 1 2 . . 1 . . . . . . Duelist 7 | . . . . . 1 1 . 1 1 2 . . 1 . . . . . . Sentry 16 | . . 1 . . . 4 2 1 1 1 2 . . 1 2 1 . . . Demolisher 1 | . . . . . . . . . . . . . 1 . . . . . . Hunter 2 | . . . . . . 1 . . . . 1 . . . . . . . . Programmer 1 | . . . . . . . . . . 1 . . . . . . . . . Best Kill Streak 6 | . . 4 1 . 3 6 3 5 3 6 3 . 2 6 5 1 . 2 . Combat Bots Only 6 | . . 2 1 . 3 6 3 4 3 6 1 . 2 6 3 1 . 2 . Max Kills in Single Turn 4 | . . 3 1 . 2 2 1 4 1 1 1 . 1 1 1 1 . 1 . Gunslinging 1 | . . . . . 1 . . . . . . . . . . . . . . Exploded 4 | . . 1 . . 1 1 . 4 . . . . . . . . . . . Melee . | . . . . . . . . . . . . . . . . . . . . Uniques/NPCs Destroyed . | . . . . . . . . . . . . . . . . . . . . Combat | -11 -10 -9 -9 -9 -8 -8 -7 -6 -6 -6 -5 -5 -5 -4 -4 -4 -4 -3 -3 -------- Run | Yrd Mat Mat Min Exi Min Mat Fac Fac Low Low Fac Upp War Pro Fac Upp Upp Res Tes Hostile Shots Fired 573 | . 5 32 3 . 50 71 51 46 9 35 21 . 26 75 16 2 7 118 6 Missed 294 | . 2 13 . . 20 26 30 26 4 15 12 . 16 45 10 1 6 63 5 Hits 279 | . 3 19 3 . 30 45 21 20 5 20 9 . 10 30 6 1 1 55 1 Melee 3 | . . . . . 2 1 . . . . . . . . . . . . . Projectile 276 | . 3 19 3 . 28 44 21 20 5 20 9 . 10 30 6 1 1 55 1 AOE 6 | . . . . . . . . . . . . . 6 . . . . . . Critical Strikes 10 | . . . . . 3 2 . . . . . . 1 . 2 . . 2 . Damage Taken 5087 | . 42 295 47 . 457 664 214 338 38 371 188 . 398 466 150 26 . 1302 91 Core 4158 | . 40 238 40 . 390 536 172 270 30 306 152 . 319 385 116 20 . 1068 76 Absorbed by Shields . | . . . . . . . . . . . . . . . . . . . . Redirected to Core 3229 | . . 181 24 . 231 451 129 250 25 231 130 . 271 273 116 20 . 840 57 Core Remaining (%) 90 | 100 93 . . . 71 100 77 . . 100 . . . 92 . . 88 . . Volleys Fired 224 | . . 13 2 . 14 37 12 23 7 26 13 . 12 23 19 3 . 20 . Largest 3 | . . 2 2 . 2 3 3 3 3 3 3 . 3 3 3 3 . 3 . Hottest 191 | . . 90 90 . 90 156 179 179 179 179 191 . 191 191 191 191 . 191 . Shots Fired 617 | . . 26 4 . 24 111 36 67 21 78 39 . 36 65 54 9 . 47 . Gun 438 | . . 26 4 . 24 74 24 46 14 52 26 . 24 46 38 6 . 34 . Cannon 179 | . . . . . . 37 12 21 7 26 13 . 12 19 16 3 . 13 . Launcher . | . . . . . . . . . . . . . . . . . . . . Special . | . . . . . . . . . . . . . . . . . . . . Kinetic . | . . . . . . . . . . . . . . . . . . . . Thermal . | . . . . . . . . . . . . . . . . . . . . Explosive . | . . . . . . . . . . . . . . . . . . . . Electromagnetic 617 | . . 26 4 . 24 111 36 67 21 78 39 . 36 65 54 9 . 47 . Robot Hit Streak 47 | . . 18 13 . 9 24 43 47 9 22 37 . 16 11 17 11 . 15 . Robot Miss Streak 4 | . . 4 . . 4 2 . 1 2 1 1 . 1 1 1 . . 2 . Penetration Max . | . . . . . . . . . . . . . . . . . . . . Secondary Targets 4 | . . 1 . . 3 . . . . . . . . . . . . . . Max Gunslinging Chain 1 | . . 1 . . 1 . . . . . . . . . . . . . . Shots Hit Robots 486 | . . 23 3 . 22 83 28 52 16 59 33 . 27 51 44 9 . 36 . Core Hits 251 | . . 16 3 . 18 35 10 29 8 30 18 . 16 27 18 3 . 20 . Critical Kills . | . . . . . . . . . . . . . . . . . . . . Critical Parts Destroyed . | . . . . . . . . . . . . . . . . . . . . Critical Strikes 17 | . . . . . . 1 . 2 . 5 1 . 3 . 4 . . 1 . Corrupt 17 | . . . . . . 1 . 2 . 5 1 . 3 . 4 . . 1 . Melee Attacks . | . . . . . . . . . . . . . . . . . . . . Impact . | . . . . . . . . . . . . . . . . . . . . Slashing . | . . . . . . . . . . . . . . . . . . . . Piercing . | . . . . . . . . . . . . . . . . . . . . Sneak Attacks . | . . . . . . . . . . . . . . . . . . . . Combat Hostiles . | . . . . . . . . . . . . . . . . . . . . Follow-up Attacks . | . . . . . . . . . . . . . . . . . . . . Damage Inflicted 9748 | . 5 552 49 . 466 1929 586 1560 274 1037 604 . 431 685 857 132 . 581 . Guns 5055 | . . 341 49 . 278 833 256 484 154 494 393 . 278 461 564 86 . 384 . Cannons 3355 | . . . . . . 763 330 597 120 478 211 . 153 224 236 46 . 197 . Explosions 1333 | . . 211 . . 188 333 . 479 . 65 . . . . 57 . . . . Melee . | . . . . . . . . . . . . . . . . . . . . Ramming 5 | . 5 . . . . . . . . . . . . . . . . . . Kinetic . | . . . . . . . . . . . . . . . . . . . . Thermal 1333 | . . 211 . . 188 333 . 479 . 65 . . . . 57 . . . . Explosive . | . . . . . . . . . . . . . . . . . . . . Electromagnetic 8410 | . . 341 49 . 278 1596 586 1081 274 972 604 . 431 685 800 132 . 581 . Impact . | . . . . . . . . . . . . . . . . . . . . Slashing . | . . . . . . . . . . . . . . . . . . . . Piercing . | . . . . . . . . . . . . . . . . . . . . Highest Corruption 15 | . . 12 15 15 15 . . . . . . . . . . . . . . Average Corruption 13 | . . 11 14 15 15 . . . . . . . . . . . . . . Corruption Purged . | . . . . . . . . . . . . . . . . . . . . Corruption Blocked . | . . . . . . . . . . . . . . . . . . . . Effects 18 | . . 5 3 2 8 . . . . . . . . . . . . . . Matter Fused 6 | . . 2 1 . 3 . . . . . . . . . . . . . . Heat Flow Errors 3 | . . 2 . 1 . . . . . . . . . . . . . . . Energy Discharges 2 | . . . . 1 1 . . . . . . . . . . . . . . Parts Rejected 1 | . . 1 . . . . . . . . . . . . . . . . . Data Loss (minor) 3 | . . . 2 . 1 . . . . . . . . . . . . . . Weapon Failures 3 | . . . . . 3 . . . . . . . . . . . . . . Overload Shots . | . . . . . . . . . . . . . . . . . . . . Overflow Damage 37 | . . . . . . 25 . 12 . . . . . . . . . . . Projectiles 22 | . . . . . . 10 . 12 . . . . . . . . . . . Explosions 15 | . . . . . . 15 . . . . . . . . . . . . . Melee . | . . . . . . . . . . . . . . . . . . . . Knockbacks . | . . . . . . . . . . . . . . . . . . . . Impact . | . . . . . . . . . . . . . . . . . . . . Kinetic . | . . . . . . . . . . . . . . . . . . . . Secondary . | . . . . . . . . . . . . . . . . . . . . Self-Inflicted Damage 82 | . 2 18 . . . . . 50 . . . . . . 12 . . . . Shots 3 | . . 1 . . . . . 1 . . . . . . 1 . . . . Rammed 2 | . 2 . . . . . . . . . . . . . . . . . . Targets Rammed 2 | . 2 . . . . . . . . . . . . . . . . . . Kicked . | . . . . . . . . . . . . . . . . . . . . Crushed . | . . . . . . . . . . . . . . . . . . . . Highest Temperature 349 | . . 336 34 160 152 317 292 301 192 196 348 . 349 193 170 156 . 175 . Average Temperature 100 | . . 90 17 88 61 109 91 120 90 96 132 . 151 76 71 73 . 55 . Received Heat Transfer 1161 | . 24 96 27 . 234 243 75 90 12 120 27 . 66 9 54 . . 84 . Effects 6 | . . 1 . . . 1 . 2 . . . . 2 . . . . . . Energy Bleed 1 | . . . . . . . . 1 . . . . . . . . . . . Interference 2 | . . . . . . 1 . 1 . . . . . . . . . . . Matter Decay 1 | . . . . . . . . . . . . . 1 . . . . . . Short Circuit 1 | . . . . . . . . . . . . . 1 . . . . . . Damage (minor) 1 | . . 1 . . . . . . . . . . . . . . . . . Siege Activations . | . . . . . . . . . . . . . . . . . . . . Martial Activations . | . . . . . . . . . . . . . . . . . . . . Shielding Activations . | . . . . . . . . . . . . . . . . . . . . Robots Disrupted 10 | . . . . . . . . 3 . 3 1 . . . 2 1 . . . Combat Hostiles 10 | . . . . . . . . 3 . 3 1 . . . 2 1 . . . Robots Corrupted 20 | . . . . . . 3 2 2 . 4 2 . 1 1 3 1 . 1 . Combat Hostiles 18 | . . . . . . 2 2 2 . 4 1 . 1 1 3 1 . 1 . Parts Fried 63 | . . . . . 1 10 3 4 1 12 8 . 2 6 7 2 . 7 . Impact Corruptions . | . . . . . . . . . . . . . . . . . . . . Robots Melted . | . . . . . . . . . . . . . . . . . . . . Combat Hostiles . | . . . . . . . . . . . . . . . . . . . . Parts Melted 2 | . . . . . . 1 . . . . . . 1 . . . . . . Heat Transferred 1250 | . . 350 . . 150 350 . 300 . 50 . . . . 50 . . . . Parts Sabotaged . | . . . . . . . . . . . . . . . . . . . . Parts Stolen . | . . . . . . . . . . . . . . . . . . . . Parts Stripped . | . . . . . . . . . . . . . . . . . . . . Power Chain Reactions 16 | . . 4 . . 2 5 . 3 . 1 . . . . 1 . . . . Alert | -11 -10 -9 -9 -9 -8 -8 -7 -6 -6 -6 -5 -5 -5 -4 -4 -4 -4 -3 -3 ------- Run | Yrd Mat Mat Min Exi Min Mat Fac Fac Low Low Fac Upp War Pro Fac Upp Upp Res Tes Maximum Alert Level 2 | . . . . . . 2 . 1 . . 1 . . . . . . 2 1 Low Security (%) 69 | 100 100 100 100 . 100 52 100 52 . . . . . . 100 . . 54 65 Level 1 27 | . . . . . . 43 . 47 . . 100 . . . . . . 27 35 Level 2 2 | . . . . . . 3 . . . . . . . . . . . 18 . Level 3 . | . . . . . . . . . . . . . . . . . . . . Level 4 . | . . . . . . . . . . . . . . . . . . . . Level 5 . | . . . . . . . . . . . . . . . . . . . . High Security . | . . . . . . . . . . . . . . . . . . . . Max Security . | . . . . . . . . . . . . . . . . . . . . Peak Influence 420 | . 15 189 99 . 134 412 192 388 . . 308 . . . 153 . . 420 225 Initial 233 | . . 1 69 . . 48 46 93 . . 233 . . . 94 . . . 225 Average 148 | . 2 68 76 . 79 192 71 228 . . 259 . . . 107 . . 203 132 Influence Increases 4124 | . 30 271 30 . 224 635 326 445 60 305 165 . 455 355 149 20 . 630 24 Destroy 0b10 Robot/C 1940 | . . 120 20 . 140 340 120 260 60 240 60 . 80 280 80 20 . 120 . Destroy 0b10 Robot/NC 105 | . . 15 . . . 30 10 20 . . 15 . . . 15 . . . . Destroy Leader 392 | . . 42 10 . 30 98 34 46 . 20 36 . . 30 26 . . 20 . Successful Hack 144 | . . 5 . . . 20 27 12 . . 24 . . . 22 . . 10 24 Disable Machine 60 | . . 15 . . . 30 . 15 . . . . . . . . . . . Destroy Structure 88 | . . 14 . . 9 27 . 32 . . . . . . 6 . . . . Partial Spotted 150 | . 15 . . . . 30 30 30 . . 30 . . . . . . 15 . Lose Combat Pursuer 1245 | . 15 60 . . 45 60 105 30 . 45 . . 375 45 . . . 465 . Influence Decreases 4055 | . 25 97 160 49 100 656 237 259 221 152 247 108 332 507 157 153 10 230 355 Entered New Map 1593 | . . 4 110 49 . 76 57 99 141 42 137 108 180 303 57 53 2 . 175 Time Decay 1862 | . 25 93 50 . 80 270 170 160 80 110 110 . 152 204 100 100 8 120 30 Search Patrol Dispatched 100 | . . . . . . . . . . . . . . . . . . 100 . Lost Part 40 | . . . . . 20 10 . . . . . . . . . . . 10 . Lost Ally 10 | . . . . . . . 10 . . . . . . . . . . . . Purge Threat 450 | . . . . . . 300 . . . . . . . . . . . . 150 Squads Dispatched 23 | . 3 3 . . . 1 5 1 . 1 2 . . . 3 . . 3 1 Investigation 5 | . 1 2 . . . 1 1 . . . . . . . . . . . . Extermination 3 | . . . . . . . 1 . . . 1 . . . 1 . . . . Reinforcement 11 | . 2 1 . . . . 3 . . . 1 . . . . . . 3 1 Assault 1 | . . . . . . . . . . 1 . . . . . . . . . Garrison 3 | . . . . . . . . 1 . . . . . . 2 . . . . Intercept . | . . . . . . . . . . . . . . . . . . . . Searches Triggered 1 | . . . . . . . . . . . . . . . . . . 1 . Construction Impeded . | . . . . . . . . . . . . . . . . . . . . Haulers Reinforced 1 | . . . . . . . 1 . . . . . . . . . . . . Active Scanning Responses . | . . . . . . . . . . . . . . . . . . . . Cargo Convoy Interrupts . | . . . . . . . . . . . . . . . . . . . . Stealth | -11 -10 -9 -9 -9 -8 -8 -7 -6 -6 -6 -5 -5 -5 -4 -4 -4 -4 -3 -3 --------- Run | Yrd Mat Mat Min Exi Min Mat Fac Fac Low Low Fac Upp War Pro Fac Upp Upp Res Tes Distress Signals 7 | . 1 3 . . . 1 . . . . . . . . . . . . 2 Communications Jammed . | . . . . . . . . . . . . . . . . . . . . Distress Signals . | . . . . . . . . . . . . . . . . . . . . Times Spotted 256 | . 7 17 2 . 18 25 20 19 3 16 11 . 36 21 12 1 2 42 4 Peak Tracking Total 15 | . 7 6 2 . 9 4 5 5 3 7 4 . 15 5 4 1 3 11 4 Tactical Retreats 36 | . 1 4 . . 2 3 3 2 . 2 . . 9 2 . . . 8 . Traps | -11 -10 -9 -9 -9 -8 -8 -7 -6 -6 -6 -5 -5 -5 -4 -4 -4 -4 -3 -3 ------- Run | Yrd Mat Mat Min Exi Min Mat Fac Fac Low Low Fac Upp War Pro Fac Upp Upp Res Tes Traps Triggered 7 | . 1 1 . . . 1 1 1 . . . . . . . . . 1 1 Indirectly . | . . . . . . . . . . . . . . . . . . . . Trap Hack Attempts . | . . . . . . . . . . . . . . . . . . . . Triggered . | . . . . . . . . . . . . . . . . . . . . Disarmed . | . . . . . . . . . . . . . . . . . . . . Reprogrammed . | . . . . . . . . . . . . . . . . . . . . Reused . | . . . . . . . . . . . . . . . . . . . . Traps Extracted . | . . . . . . . . . . . . . . . . . . . . Installed . | . . . . . . . . . . . . . . . . . . . . Triggered . | . . . . . . . . . . . . . . . . . . . . Machines | -11 -10 -9 -9 -9 -8 -8 -7 -6 -6 -6 -5 -5 -5 -4 -4 -4 -4 -3 -3 ---------- Run | Yrd Mat Mat Min Exi Min Mat Fac Fac Low Low Fac Upp War Pro Fac Upp Upp Res Tes Machines Disabled 4 | . . 1 . . . 2 . 1 . . . . . . . . . . . Max in Single Turn 1 | . . 1 . . . 1 . 1 . . . . . . . . . . . Garrison Access 3 | . . . . . . 1 1 1 . . . . . . . . . . . Machines Repaired . | . . . . . . . . . . . . . . . . . . . . Machines Dismantled . | . . . . . . . . . . . . . . . . . . . . Machines Sabotaged . | . . . . . . . . . . . . . . . . . . . . Overloaded Fab Kills . | . . . . . . . . . . . . . . . . . . . . Hacking | -11 -10 -9 -9 -9 -8 -8 -7 -6 -6 -6 -5 -5 -5 -4 -4 -4 -4 -3 -3 --------- Run | Yrd Mat Mat Min Exi Min Mat Fac Fac Low Low Fac Upp War Pro Fac Upp Upp Res Tes Machines Accessed 47 | . 1 3 . . . 8 7 7 . . 7 . 2 . 4 1 . 2 5 Terminals 30 | . 1 3 . . . 6 5 4 . . 5 . . . 3 . . . 3 Fabricators 7 | . . . . . . . 1 1 . . 2 . . . 1 . . 1 1 Repair Stations . | . . . . . . . . . . . . . . . . . . . . Recycling Units . | . . . . . . . . . . . . . . . . . . . . Scanalyzers 4 | . . . . . . 1 . 1 . . . . . . . . . 1 1 Garrison Access 3 | . . . . . . 1 1 1 . . . . . . . . . . . Total Hacks 147 | . 2 12 . . . 40 21 13 . . 23 . 2 . 7 1 . 3 23 Successful 78 | . . 6 . . . 29 12 5 . . 5 . 2 . 3 1 . 1 14 Failed 68 | . 2 6 . . . 11 9 7 . . 18 . . . 4 . . 2 9 Catastrophic 11 | . . 2 . . . 2 1 1 . . 2 . . . 2 . . 1 . Database Lockouts 1 | . . . . . . . . 1 . . . . . . . . . . . Manual 70 | . 2 10 . . . 17 14 7 . . 8 . . . 4 . . . 8 Terminals 116 | . 2 12 . . . 35 19 8 . . 18 . . . 5 . . . 17 Fabricators 11 | . . . . . . . 1 1 . . 5 . . . 2 . . 1 1 Repair Stations . | . . . . . . . . . . . . . . . . . . . . Recycling Units . | . . . . . . . . . . . . . . . . . . . . Scanalyzers 14 | . . . . . . 4 . 3 . . . . . . . . . 2 5 Garrison Access 3 | . . . . . . 1 1 1 . . . . . . . . . . . Terminal Hacks 36 | . . 4 . . . 17 4 . . . 2 . 2 . . 1 . . 6 Robot Analysis 2 | . . 2 . . . . . . . . . . . . . . . . . Prototype ID Bank 2 | . . 1 . . . 1 . . . . . . . . . . . . . Open Door 4 | . . . . . . . . . . . . . 2 . . 1 . . 1 Level Access Points 3 | . . . . . . 1 1 . . . 1 . . . . . . . . Branch Access Points 1 | . . . . . . 1 . . . . . . . . . . . . . Terminal Index 2 | . . . . . . 1 1 . . . . . . . . . . . . Scanalyzer Index 2 | . . . . . . 1 . . . . 1 . . . . . . . . Alert Level 6 | . . . . . . 3 1 . . . . . . . . . . . 2 Unreport Threat 3 | . . . . . . 2 . . . . . . . . . . . . 1 Locate Traps 1 | . . . . . . 1 . . . . . . . . . . . . . Dispatch Records 1 | . . . . . . 1 . . . . . . . . . . . . . Hauler Manifests 2 | . . . . . . 1 . . . . . . . . . . . . 1 Registered Components 2 | . . . . . . 1 . . . . . . . . . . . . 1 Zone Layout 5 | . . 1 . . . 3 1 . . . . . . . . . . . . Fabricator Hacks 4 | . . . . . . . 1 1 . . . . . . 1 . . . 1 Network Status 4 | . . . . . . . 1 1 . . . . . . 1 . . . 1 Repair Station Hacks . | . . . . . . . . . . . . . . . . . . . . Recycling Unit Hacks . | . . . . . . . . . . . . . . . . . . . . Scanalyzer 11 | . . . . . . 4 . 2 . . . . . . . . . 1 4 Retrieve Study 11 | . . . . . . 4 . 2 . . . . . . . . . 1 4 Garrison Access Hacks 3 | . . . . . . 1 1 1 . . . . . . . . . . . Seal Access 3 | . . . . . . 1 1 1 . . . . . . . . . . . Unauthorized Hacks 24 | . . 2 . . . 7 6 1 . . 3 . . . 2 . . . 3 Terminals 24 | . . 2 . . . 7 6 1 . . 3 . . . 2 . . . 3 Track 4 | . . . . . . 2 1 . . . . . . . . . . . 1 Assimilate 2 | . . . . . . . 1 . . . 1 . . . . . . . . Botnet 15 | . . 2 . . . 3 3 1 . . 2 . . . 2 . . . 2 Disrupt 2 | . . . . . . 1 1 . . . . . . . . . . . . Operators 1 | . . . . . . 1 . . . . . . . . . . . . . Fabricators . | . . . . . . . . . . . . . . . . . . . . Repair Stations . | . . . . . . . . . . . . . . . . . . . . Recycling Units . | . . . . . . . . . . . . . . . . . . . . Scanalyzers . | . . . . . . . . . . . . . . . . . . . . Garrison Access . | . . . . . . . . . . . . . . . . . . . . Data Cores Recovered 1 | . . . . . . . . 1 . . . . . . . . . . . Used . | . . . . . . . . . . . . . . . . . . . . Hacking Detections 36 | . 1 3 . . . 7 5 4 . . 7 . . . 4 . . 2 3 Full Trace Events 1 | . . 1 . . . . . . . . . . . . . . . . . Feedback Events . | . . . . . . . . . . . . . . . . . . . . Feedback Blocked . | . . . . . . . . . . . . . . . . . . . . Robot Schematics Acquired . | . . . . . . . . . . . . . . . . . . . . Robots Built . | . . . . . . . . . . . . . . . . . . . . Authchips . | . . . . . . . . . . . . . . . . . . . . Time . | . . . . . . . . . . . . . . . . . . . . Total Robot Build Rating . | . . . . . . . . . . . . . . . . . . . . Part Schematics Acquired . | . . . . . . . . . . . . . . . . . . . . Parts Built . | . . . . . . . . . . . . . . . . . . . . Authchips . | . . . . . . . . . . . . . . . . . . . . Time . | . . . . . . . . . . . . . . . . . . . . Total Part Build Rating . | . . . . . . . . . . . . . . . . . . . . Part Studies Acquired 11 | . . . . . . 4 . 2 . . . . . . . . . 1 4 Parts Repaired . | . . . . . . . . . . . . . . . . . . . . Time . | . . . . . . . . . . . . . . . . . . . . Parts Recycled . | . . . . . . . . . . . . . . . . . . . . Recycled Matter . | . . . . . . . . . . . . . . . . . . . . Retrieved Matter . | . . . . . . . . . . . . . . . . . . . . Retrieved Components . | . . . . . . . . . . . . . . . . . . . . Parts Scanalyzed . | . . . . . . . . . . . . . . . . . . . . Part Schematics Acquired . | . . . . . . . . . . . . . . . . . . . . Parts Damaged . | . . . . . . . . . . . . . . . . . . . . Bothacking | -11 -10 -9 -9 -9 -8 -8 -7 -6 -6 -6 -5 -5 -5 -4 -4 -4 -4 -3 -3 ------------ Run | Yrd Mat Mat Min Exi Min Mat Fac Fac Low Low Fac Upp War Pro Fac Upp Upp Res Tes Used RIF Installer . | . . . . . . . . . . . . . . . . . . . . Robots Hacked . | . . . . . . . . . . . . . . . . . . . . Non-combat . | . . . . . . . . . . . . . . . . . . . . Combat . | . . . . . . . . . . . . . . . . . . . . Robot Hacks Applied . | . . . . . . . . . . . . . . . . . . . . Relay Couplers Released . | . . . . . . . . . . . . . . . . . . . . Fabnet Peak Effective % . | . . . . . . . . . . . . . . . . . . . . Robots Rewired . | . . . . . . . . . . . . . . . . . . . . Allies Hacked . | . . . . . . . . . . . . . . . . . . . . Hacks Repelled . | . . . . . . . . . . . . . . . . . . . . Allies | -11 -10 -9 -9 -9 -8 -8 -7 -6 -6 -6 -5 -5 -5 -4 -4 -4 -4 -3 -3 -------- Run | Yrd Mat Mat Min Exi Min Mat Fac Fac Low Low Fac Upp War Pro Fac Upp Upp Res Tes Total Allies 2 | . . . . . . . 1 . . . 1 . . . . . . . . Largest Group 1 | . . . . . . . 1 . . . 1 . . . . . . . . Highest-Rated Group 26 | . . . . . . . 10 . . . 26 . . . . . . . . Highest-Rated Ally 26 | . . . . . . . 10 . . . 26 . . . . . . . . Total Orders . | . . . . . . . . . . . . . . . . . . . . Ally Attacks . | . . . . . . . . . . . . . . . . . . . . Total Damage . | . . . . . . . . . . . . . . . . . . . . Kills . | . . . . . . . . . . . . . . . . . . . . Allies Corrupted . | . . . . . . . . . . . . . . . . . . . . Allies Melted . | . . . . . . . . . . . . . . . . . . . . Intel | -11 -10 -9 -9 -9 -8 -8 -7 -6 -6 -6 -5 -5 -5 -4 -4 -4 -4 -3 -3 ------- Run | Yrd Mat Mat Min Exi Min Mat Fac Fac Low Low Fac Upp War Pro Fac Upp Upp Res Tes Active Infowar (turns) 4359 | . 94 243 101 49 167 555 350 325 177 234 239 9 573 442 217 200 43 281 60 Terrain 4359 | . 94 243 101 49 167 555 350 325 177 234 239 9 573 442 217 200 43 281 60 Robot Analysis Total 2 | . . 2 . . . . . . . . . . . . . . . . . Derelict Logs Recovered 6 | . . . 2 . . . . . 1 . . 1 . 1 . 1 . . . Drone Launches . | . . . . . . . . . . . . . . . . . . . . Drone Recoveries . | . . . . . . . . . . . . . . . . . . . . Exploration | -11 -10 -9 -9 -9 -8 -8 -7 -6 -6 -6 -5 -5 -5 -4 -4 -4 -4 -3 -3 ------------- Run | Yrd Mat Mat Min Exi Min Mat Fac Fac Low Low Fac Upp War Pro Fac Upp Upp Res Tes Turns Passed 4424 | 13 121 243 101 49 167 580 350 325 177 234 239 9 573 442 217 200 43 281 60 Spaces Moved 8133 | 18 216 244 109 121 292 822 804 637 327 209 502 29 1251 772 484 537 100 486 173 Core 391 | 18 216 157 . . . . . . . . . . . . . . . . . Treads . | . . . . . . . . . . . . . . . . . . . . Legs . | . . . . . . . . . . . . . . . . . . . . Wheels . | . . . . . . . . . . . . . . . . . . . . Hover . | . . . . . . . . . . . . . . . . . . . . Flight 7742 | . . 87 109 121 292 822 804 637 327 209 502 29 1251 772 484 537 100 486 173 Fastest Speed 27 | 50 50 40 40 40 37 32 30 30 30 30 30 30 30 27 27 27 27 27 29 Average Speed 31 | 50 50 47 40 40 37 37 30 30 30 30 30 30 31 27 27 27 27 27 32 Slowest Speed 150 | 50 50 150 40 40 40 110 32 30 30 30 30 30 109 30 27 27 27 29 34 Overloaded Moves . | . . . . . . . . . . . . . . . . . . . . Propulsion Burnouts . | . . . . . . . . . . . . . . . . . . . . Robots Hopped 57 | . . . . . 6 4 8 5 . . 5 . 4 . 10 3 . 9 3 Potential Cave-ins . | . . . . . . . . . . . . . . . . . . . . Cave-ins Triggered . | . . . . . . . . . . . . . . . . . . . . Exploration Rate (%) 33 | 3 43 27 23 25 51 49 20 20 63 20 18 5 85 87 15 68 12 15 21 Regions Visited 19 Branch Regions 11 Pre-discovered Areas 2 | . . . 1 . . . . . 1 . . . . . . . . . . Known Exits Taken 4 | . . . . . . 1 1 . . . . . . 1 . . . 1 . Unknown Exits Taken 15 | 1 1 1 1 1 1 . . 1 1 1 1 1 1 . 1 1 1 . . Scrap Searched 10 | . . . . . 2 . . . . 4 . 1 . 1 . 2 . . . Spaces Dug . | . . . . . . . . . . . . . . . . . . . . Terrain Destroyed 98 | . . 12 . . 9 25 . 40 . 9 . . . . 3 . . . . Melee . | . . . . . . . . . . . . . . . . . . . . Projectile . | . . . . . . . . . . . . . . . . . . . . AOE 98 | . . 12 . . 9 25 . 40 . 9 . . . . 3 . . . . Terrain Rammed . | . . . . . . . . . . . . . . . . . . . . Walls Destroyed . | . . . . . . . . . . . . . . . . . . . . Machines Disabled . | . . . . . . . . . . . . . . . . . . . . Actions | -11 -10 -9 -9 -9 -8 -8 -7 -6 -6 -6 -5 -5 -5 -4 -4 -4 -4 -3 -3 --------- Run | Yrd Mat Mat Min Exi Min Mat Fac Fac Low Low Fac Upp War Pro Fac Upp Upp Res Tes Total 9454 | 21 227 343 162 120 316 1005 876 715 392 333 562 28 1398 960 529 583 115 595 174 Wait 870 | 4 9 64 50 . 2 96 49 34 59 73 37 . 103 145 25 44 16 60 . Move 8008 | 17 215 243 108 120 282 813 787 626 326 208 491 28 1243 771 465 530 99 469 167 Hop 49 | . . . . . 3 4 8 5 . . 5 . 3 . 8 3 . 7 3 Pick Up 3 | . . . . . . . 2 . . 1 . . . . . . . . . Fast Attach 39 | . 1 7 . . 1 11 2 3 . . 1 . 6 2 2 . . 1 2 Attach . | . . . . . . . . . . . . . . . . . . . . Detach 1 | . . . . . . . . . . . . . 1 . . . . . . Swap 30 | . . 2 1 . . 2 6 1 . 2 4 . 4 . . 2 . 6 . Drop 35 | . . 3 1 . . 6 4 1 . 1 3 . 5 . 2 1 . 6 2 Fire 224 | . . 13 2 . 14 37 12 23 7 26 13 . 12 23 19 3 . 20 . Melee . | . . . . . . . . . . . . . . . . . . . . Ram 2 | . 2 . . . . . . . . . . . . . . . . . . Kick . | . . . . . . . . . . . . . . . . . . . . Crush . | . . . . . . . . . . . . . . . . . . . . Escape Stasis . | . . . . . . . . . . . . . . . . . . . . Rewire . | . . . . . . . . . . . . . . . . . . . . Trap . | . . . . . . . . . . . . . . . . . . . . Miscellaneous 193 | . . 11 . . 14 36 6 22 . 22 8 . 21 19 8 . . 26 . Route ------- -11/Scrapyard -10/Materials (discovered 2 exits: *Mat x2) -9/Materials -9/Mines -9/Exiles -8/Mines -8/Materials (discovered 3 exits: *Fac x3) -7/Factory (discovered 5 exits: *Fac x4 / Sto) -6/Factory (discovered 2 exits: *Fac / [*Low]) -6/Lower Caves -6/Lower Caves -5/Factory (discovered 5 exits: *Fac x4 / [*Upp]) -5/Upper Caves -5/Warlord -4/Proximity Caves -4/Factory (discovered 2 exits: *Res / *Upp) -4/Upper Caves -4/Upper Caves -3/Research -3/Testing History --------- Turn | Location | Event 4 | -11/Scrapyard | Discovered new exit (range 13) 14 | -11/Scrapyard | Entered Materials 53 | -10/Materials | Discovered new exit (range 12) 128 | -10/Materials | Discovered new exit (range 8) 135 | -10/Materials | Entered another Materials area 137 | -9/Materials | Reached level 2 154 | -9/Materials | Upgraded with Weapon slot (x1) 262 | -9/Materials | Discovered new exit (range 12) 263 | -9/Materials | Met 8R-AWN 288 | -9/Materials | System corruption reached 10% 312 | -9/Materials | Build established: Mutant 378 | -9/Materials | Entered Mines 379 | -9/Mines | Followed 8R-AWN into the Mines 384 | -9/Mines | Reached level 3 476 | -9/Mines | Discovered new exit (range 5) 479 | -9/Mines | Entered Exiles 489 | -9/Exiles | Welcomed by 8R-AWN 497 | -9/Exiles | Met EX-HEX 523 | -9/Exiles | Discovered new exit (range 14) 528 | -9/Exiles | Entered Mines 547 | -8/Mines | Upgraded with Propulsion slot (x1) 616 | -8/Mines | Reached level 4 675 | -8/Mines | Discovered new exit (range 14) 695 | -8/Mines | Entered Materials 697 | -8/Materials | Reached level 5 734 | -8/Materials | Upgraded with Weapon slot (x1) 801 | -8/Materials | Upgraded with Utility slot (x1) 874 | -8/Materials | Identified exit to Factory 1021 | -8/Materials | Core integrity fell below 50% 1122 | -8/Materials | Reached level 6 1160 | -8/Materials | Build established: Scientist-Gunner 1246 | -8/Materials | Upgraded with Propulsion slot (x1) 1275 | -8/Materials | Entered Factory 1276 | -7/Factory | Identified exit to Storage 1277 | -7/Factory | Reached level 7 1365 | -7/Factory | Upgraded with Utility slot (x1) 1447 | -7/Factory | Upgraded with Utility slot (x1) 1497 | -7/Factory | Identified exit to Factory 1573 | -7/Factory | Reached level 8 1590 | -7/Factory | Build established: Sprinter 1625 | -7/Factory | Entered another Factory area 1627 | -6/Factory | Reached level 9 1714 | -6/Factory | Upgraded with Utility slot (x1) 1742 | -6/Factory | Discovered new exit (range 14) 1759 | -6/Factory | Central database locked down 1770 | -6/Factory | Spotted B-75 Beast 1838 | -6/Factory | Reached level 10 1848 | -6/Factory | Upgraded with Utility slot (x1) 1853 | -6/Factory | Upgraded with Utility slot (x1) 1884 | -6/Factory | Discovered new exit (range 6) 1910 | -6/Factory | Garrison activated, responded to threat 1950 | -6/Factory | Entered Lower Caves 1992 | -6/Lower Caves | Attracted the attention of an 0b10 checkpoint 2117 | -6/Lower Caves | Spotted B-75 Beast 2123 | -6/Lower Caves | Discovered new exit (range 13) 2127 | -6/Lower Caves | Entered another Lower Caves area 2129 | -6/Lower Caves | Reached level 11 2168 | -6/Lower Caves | Attracted the attention of an 0b10 outpost 2284 | -6/Lower Caves | Discovered new exit (range 18) 2335 | -6/Lower Caves | Reached level 12 2361 | -6/Lower Caves | Entered Factory 2363 | -5/Factory | Reached level 13 2394 | -5/Factory | Discovered new exit (range 10) 2534 | -5/Factory | Identified exit to Factory 2579 | -5/Factory | Discovered new exit (range 17) 2600 | -5/Factory | Entered Upper Caves 2603 | -5/Upper Caves | A Derelict revealed a hidden shortcut to "reach the base" 2605 | -5/Upper Caves | Learned Factory terminal intel 2609 | -5/Upper Caves | Entered Warlord 2611 | -5/Warlord | Reached level 14 2669 | -5/Warlord | Visited the Vortex Lab 2672 | -5/Warlord | Found Prototype Energy Gun 2672 | -5/Warlord | Identified Vortex Rail 2676 | -5/Warlord | Found Prototype Energy Gun 2676 | -5/Warlord | Identified Vortex Shotgun 2691 | -5/Warlord | Warlord's base attacked by MAIN.C 2728 | -5/Warlord | Found Prototype Special Weapon 2728 | -5/Warlord | Identified RU-N14's Throwing Claymores v3 2817 | -5/Warlord | Opened side exit 2991 | -5/Warlord | Spotted Striker 2991 | -5/Warlord | Spotted Executioner 2991 | -5/Warlord | Discovered new exit (range 13) 2999 | -5/Warlord | Warlord forces counterattacked 3068 | -5/Warlord | Lost 4 allies 3182 | -5/Warlord | Entered Proximity Caves 3184 | -4/Proximity Caves | Reached level 15 3184 | -4/Proximity Caves | Upgraded with Utility slot (x1) 3188 | -4/Proximity Caves | Lost 9 allies 3192 | -4/Proximity Caves | Learned 4 Research zone layouts 3245 | -4/Proximity Caves | Attracted the attention of an 0b10 checkpoint 3345 | -4/Proximity Caves | Reached level 16 3348 | -4/Proximity Caves | Upgraded with Propulsion slot (x1) 3524 | -4/Proximity Caves | Discovered exit to Factory (range 16) 3624 | -4/Proximity Caves | Entered Factory 3625 | -4/Factory | Loaded intel: 26 terminal locations 3626 | -4/Factory | Reached level 17 3697 | -4/Factory | Discovered new exit (range 17) 3702 | -4/Factory | Spotted B-86 Titan 3723 | -4/Factory | Garrison activated, responded to threat 3796 | -4/Factory | Discovered new exit (range 10) 3841 | -4/Factory | Entered Upper Caves 3843 | -4/Upper Caves | Reached level 18 3882 | -4/Upper Caves | Attracted the attention of an 0b10 checkpoint 3988 | -4/Upper Caves | Discovered new exit (range 11) 4041 | -4/Upper Caves | Entered another Upper Caves area 4049 | -4/Upper Caves | Discovered new exit (range 12) 4070 | -4/Upper Caves | Spotted B-86 Titan 4084 | -4/Upper Caves | Entered Research 4085 | -3/Research | Identified exit to Testing 4086 | -3/Research | Reached level 19 4143 | -3/Research | Core integrity fell below 50% 4177 | -3/Research | Reached level 20 4269 | -3/Research | Core integrity fell below 20% 4334 | -3/Research | Search patrols dispatched 4365 | -3/Research | Entered Testing 4367 | -3/Testing | Reached level 21 4399 | -3/Testing | Watched by a mysterious "MATRIX" hacker. 4425 | -3/Testing | Destroyed by Hellfire Trap Last Messages --------------- Downloading performance data... Effective improvements: +2 support >>Study(Xenon Bombardment Thruster) Identified Xenon Bombardment Thruster... Downloading performance data... Effective improvements: +1 support 04406_ R-10 Processor collects Xenon Bombardment Thruster+. 04411_ W-44 Eye sends out distress signal. 04413_ K-01 Serf cleans the Graviton Restrictor. 04421_ Connecting with Fabricator... >>Network(Status) Querying network status... 2 records found: (29,36) - Idle (15,59) - Loaded: A-27 Freighter 04425_ Triggered Hellfire Trap. 04425_ An explosion rips through the floor. Map ----- +----------------------------------------------------+ | ?????????????????????????????????????????????????? | | ?????????????????????????????????????????????????? | | ?????????????????????????????????????????????????? | | ?????????????????????????????????????????????????? | | ?????????????????????????????????????????????????? | | ?????????????????????????????????????????????????? | | ?????????????????????????????????????????????????? | | ?????????????????????????????????????????????????? | | ?????????????????????????????????????????????????? | | ????????????????????????????#????????????????????? | | ?????????????????????????????????????????????????? | | ?????????????????????????#???????????????????????? | | ?????????????????????##??????????#???????????????? | | ???????????????????? ????? ?????????????????????? | | ?????????????????#?? ??????????? ?? ?????????????? | | ????????????????#?????"??????????????????????????? | | ???????????? ????##????" ??"????? ???????????????? | | ??????????????##???#? ????"?#??""???????? ???????? | | ????????????? ???????"?? ????#??????"????????????? | | ???????? ?????????????"?????#??"?????????????????? | | ?????????? ???#??#?? ?"? ???? ?? ?????????????? | | ???????????? ?##?#??? ??????#?? ??? ??##????????? | | ???????????# ##########+#########+#??###????????? | | ???????????? ?? ? ??# ????? | | ???????????? ? ? ? ? ???????? | | ?????????"?#??#?#?#???# @u#????????#????#???????? | | ???????? ? ?##?????#### # ?? ? ?#???? ????? | | ??????T"##?####?####### # "?? ? ? ??#?? ???? | | ???????"?####?##??#?### #??"???""" ???##? ????? | | ???#?##??#?#?#?####???# # "??" ??" ???#? ?? ?? | | ????##?##??? ? ? ?# #???? ????? #??##????#? | | ?#????#?## ? ?? ?? # k#? ? ? ???????##?###??? | | ?#????##?# ???? ? ?# k #?? ##???##???# | | ??????#?""? ?? ?# ########???#?#?##?#?#?? | | ??#?###"R??? ""? ?"? # """ !#???#??#?##????? | | ??#####?"" ?""? "?" ?+ ""F"" ##????###??###?# | | ##?#??? ""?? """?""" # "" "" #?##?#?##???##?? | | ?#######?# ? ? # #?##?##??#?????# | | ?#?####?## ??""??""?? # """ """ #?#?#??#???#???# | | #?#?#?##?# """?"""? # """ """ ####??#???###??? | | ?##?#????# ??""" ""? # """ """ #######??#??#?## | | ####???### ? ?# """ """ #???####?##?#??# | | #?##??#?############### """ """ #############??# | | ##?#?##?# ] # # ##?? ?# | | ##????### = ! "" #! """ """ + ##?? ## | | #?####### """# """ """ # ## ?## | | ?######?# """ """ S"# """ """ # + ? ?? | | ?#??###?# """ """ """# """ """ # #? ? ? | | ##?###### """ """ """# """ """ # ##? ??# | | ####?#### # #? ## ??# | +----------------------------------------------------+ Best States ------------- Heat Dissipation 67 Energy Generation 42 Energy Capacity 265 Matter Stores 300 Matter Capacity 300 Sight Range 16 Terrain Scan Range 20 Terrain Scan Density 610 Weapon Cycling 20 Evasion (%) 76 Targeting Accuracy 8 Target Analysis 6 Core Analysis 6 Offensive Hacking 20 Defensive Hacking 20 Item Schematics ----------------- None Robot Schematics ------------------ None Fabricated ------------ Nothing Repaired ---------- Nothing Studied --------- Shock Rifle | -8/Materials | Hacked Lgt. EM Pulse Cannon | -8/Materials | Hacked Flight Unit | -8/Materials | Hacked Lgt. Nuclear Core | -8/Materials | Hacked Arc Projector | -6/Factory | Hacked Cesium-ion Thruster | -6/Factory | Hacked Lightning Gun | -3/Research | Hacked Disruptor Cannon | -3/Testing | Hacked Fusion Compressor | -3/Testing | Hacked Impulse Thruster Array | -3/Testing | Hacked Xenon Bombardment Thruster | -3/Testing | Hacked Alien Tech Used ----------------- None Achievements -------------- A Problem For Future Me Disruptive Presence My Business Is Booming There's More Where That Came From Challenges ------------ None RPGLIKE | -11 -10 -9 -9 -9 -8 -8 -7 -6 -6 -6 -5 -5 -5 -4 -4 -4 -4 -3 -3 --------- Run | Yrd Mat Mat Min Exi Min Mat Fac Fac Low Low Fac Upp War Pro Fac Upp Upp Res Tes Levels Raised 20 | . . 1 1 . 1 2 2 2 . 2 1 . 1 2 1 1 . 2 1 XP Earned 33648 | 3000 100 2375 650 200 1350 3840 2350 3135 800 1800 2070 500 1338 2550 2110 600 500 2760 1620 XP Spent 27835 | . 850 3450 . . 500 2100 3000 6170 390 2125 . . 950 4500 . . . . 3800 Upgrades 47 | . 4 8 . . 1 3 5 7 3 4 . . 4 3 . . . . 5 Propulsion Slot 3 | . . . . . 1 1 . . . . . . . 1 . . . . . Utility Slot 7 | . . . . . . 1 2 3 . . . . . 1 . . . . . Weapon Slot 2 | . . 1 . . . 1 . . . . . . . . . . . . . Heat Dissipation 7 | . . 1 . . . . . 3 . . . . 3 . . . . . . Energy Generation 3 | . . . . . . . 2 1 . . . . . . . . . . . Energy Storage 2 | . . . . . . . . . . 2 . . . . . . . . . Mass Support 3 | . . 2 . . . . . . . . . . . 1 . . . . . Inventory Capacity 2 | . . . . . . . 1 . . . . . 1 . . . . . . Terrain Scan Density 4 | . 1 . . . . . . . 3 . . . . . . . . . . Ranged Accuracy 6 | . . 4 . . . . . . . 2 . . . . . . . . . Hack Attack % 4 | . 2 . . . . . . . . . . . . . . . . . 2 Hack Defense % 4 | . 1 . . . . . . . . . . . . . . . . . 3 Protomatter Created 1484 | . . . . . 96 354 106 128 . 360 58 . 63 127 68 . . 124 . Integrity Restored 4088 | . . 249 . . 285 765 125 464 . 444 171 . 427 374 172 . . 612 . Core 3554 | . . 249 . . 285 710 36 406 . 336 138 . 333 340 109 . . 612 . Parts 534 | . . . . . . 55 89 58 . 108 33 . 94 34 63 . . . . Protomatter Decayed 724 | . . . . . . 42 12 14 . 11 . . 545 10 7 . . . 83 Game ------ Seed ChipSpliceThermoblaster Manual? 0 Play Time 01:30:07 Cumulative 176.0 hours Start 2026.02.15 @ 02:43:36 End 2026.02.15 @ 14:47:58 Sessions 3 Manual Loads 0 Difficulty Rogue Special Mode Winter2019/RPGLIKE Game No. 189 Rogue 189 Adventurer 0 Explorer 0 Win Type - Total 13 Types 11/0/0/1/0/0/1/0/0/0 Lore% 43 Gallery% 53 Achievement% 42 Wizard Run 0 Options --------- Layout 2 ASCII 0 Keyboard 0 Movement Numpad Keybinds 0 Fullscreen 1 Font 24/Smallcaps Map View 50x44 Zoom Use 0% Tactical HUD 1 Map Filters NONE Filters NONE Steam 1 RUN: 0a0e353c-a5dc-4774-b171-6bccdbf58229